[Event "*** Titled Tuesday Blitz"]
[Site "Chess.com"]
[Date "2020.11.03"]
[Round "2"]
[White "ChessWarrior7197"]
[Black "Fy_Rakotomaharo"]
[Result "1-0"]
[WhiteElo "2997"]
[BlackElo "2621"]
[TimeControl "180+1"]
[EndTime "10:18:42 PST"]
[Termination "ChessWarrior7197 won on time"]

1. e4 {[%clk 0:03:00.9]} 1... e5 {[%clk 0:02:58.4]} 2. Nf3 {[%clk 0:03:00.3]}
2... Nf6 {[%clk 0:02:58.6]} 3. d4 {[%clk 0:02:59.1]} 3... Nxe4 {[%clk 0:02:56]}
4. dxe5 {[%clk 0:02:59.1]} 4... d5 {[%clk 0:02:54]} 5. Nbd2 {[%clk 0:02:57.9]}
5... Be7 {[%clk 0:02:43.3]} 6. Bd3 {[%clk 0:02:56.9]} 6... Nc5 {[%clk
0:02:36.9]} 7. Be2 {[%clk 0:02:47.4]} 7... Nc6 {[%clk 0:02:26.6]} 8. O-O {[%clk
0:02:47]} 8... Bf5 {[%clk 0:02:21]} 9. Nb3 {[%clk 0:02:42.2]} 9... O-O {[%clk
0:02:14.8]} 10. Nbd4 {[%clk 0:02:40.3]} 10... Nxd4 {[%clk 0:02:13.5]} 11. Nxd4
{[%clk 0:02:41.2]} 11... Bg6 {[%clk 0:02:13]} 12. f4 {[%clk 0:02:40]} 12... Be4
{[%clk 0:02:12.8]} 13. Be3 {[%clk 0:02:37.9]} 13... g6 {[%clk 0:01:48.4]} 14.
Qd2 {[%clk 0:02:29.2]} 14... Ne6 {[%clk 0:01:47]} 15. c3 {[%clk 0:02:23.8]}
15... c5 {[%clk 0:01:40.9]} 16. Nb3 {[%clk 0:02:13.1]} 16... Qb6 {[%clk
0:01:24.8]} 17. Rad1 {[%clk 0:02:11.7]} 17... Rad8 {[%clk 0:01:23.5]} 18. Bf3
{[%clk 0:02:11.5]} 18... a5 {[%clk 0:01:16.9]} 19. Bxe4 {[%clk 0:02:06.1]} 19...
dxe4 {[%clk 0:01:17.8]} 20. Qc2 {[%clk 0:02:06.6]} 20... a4 {[%clk 0:01:06.1]}
21. Nd2 {[%clk 0:01:55.1]} 21... Rd3 {[%clk 0:01:05.9]} 22. Rfe1 {[%clk
0:01:45.4]} 22... Rfd8 {[%clk 0:01:05.1]} 23. Nxe4 {[%clk 0:01:21.9]} 23... Rxd1
{[%clk 0:01:02.5]} 24. Rxd1 {[%clk 0:01:22.8]} 24... Rxd1+ {[%clk 0:01:02.8]}
25. Qxd1 {[%clk 0:01:23.7]} 25... Qxb2 {[%clk 0:01:02.9]} 26. Qxa4 {[%clk
0:01:24.3]} 26... b5 {[%clk 0:00:54.6]} 27. Qb3 {[%clk 0:01:22.7]} 27... Qa1+
{[%clk 0:00:47.2]} 28. Kf2 {[%clk 0:01:22.1]} 28... Qh1 {[%clk 0:00:29.6]} 29.
Qxb5 {[%clk 0:01:21.5]} 29... Bh4+ {[%clk 0:00:29.7]} 30. Kf3 {[%clk 0:01:17.6]}
30... Qd1+ {[%clk 0:00:23.6]} 31. Qe2 {[%clk 0:01:17.2]} 31... Qd5 {[%clk
0:00:24.2]} 32. c4 {[%clk 0:01:11.7]} 32... Qc6 {[%clk 0:00:24.4]} 33. Qd3
{[%clk 0:01:07.7]} 33... Be7 {[%clk 0:00:21]} 34. g4 {[%clk 0:01:06]} 34... Nc7
{[%clk 0:00:11.7]} 35. f5 {[%clk 0:01:02.6]} 35... Qa4 {[%clk 0:00:10.3]} 36.
Qb3 {[%clk 0:00:53.1]} 36... Qc6 {[%clk 0:00:08.2]} 37. Qb8+ {[%clk 0:00:52.5]}
37... Bf8 {[%clk 0:00:08.4]} 38. Bh6 {[%clk 0:00:45]} 38... Ne8 {[%clk
0:00:02.7]} 39. Qxe8 {[%clk 0:00:44.7]} 1-0

[Event "*** Titled Tuesday Blitz"]
[Site "Chess.com"]
[Date "2020.11.03"]
[Round "2"]
[White "BigAl"]
[Black "garicradomir"]
[Result "1-0"]
[WhiteElo "2475"]
[BlackElo "2301"]
[TimeControl "180+1"]
[EndTime "10:18:42 PST"]
[Termination "BigAl won by resignation"]

1. Nf3 {[%clk 0:03:00.9]} 1... Nf6 {[%clk 0:02:59.2]} 2. g3 {[%clk 0:03:01.5]}
2... g6 {[%clk 0:02:58.4]} 3. Bg2 {[%clk 0:03:02.2]} 3... Bg7 {[%clk 0:02:57.3]}
4. O-O {[%clk 0:03:02.9]} 4... O-O {[%clk 0:02:57.2]} 5. d3 {[%clk 0:03:03.6]}
5... d5 {[%clk 0:02:57]} 6. Nbd2 {[%clk 0:03:03.6]} 6... Nc6 {[%clk 0:02:57]} 7.
d4 {[%clk 0:03:03.5]} 7... Bg4 {[%clk 0:02:52.8]} 8. h3 {[%clk 0:03:01.3]} 8...
Bxf3 {[%clk 0:02:51.1]} 9. Nxf3 {[%clk 0:03:01.4]} 9... Re8 {[%clk 0:02:48.8]}
10. Ne5 {[%clk 0:02:46.2]} 10... Nxe5 {[%clk 0:02:43.6]} 11. dxe5 {[%clk
0:02:46.1]} 11... Ne4 {[%clk 0:02:43.8]} 12. e6 {[%clk 0:02:43.1]} 12... fxe6
{[%clk 0:02:35.4]} 13. c3 {[%clk 0:02:34.1]} 13... Qd6 {[%clk 0:02:29.7]} 14.
Qb3 {[%clk 0:02:23.6]} 14... Nc5 {[%clk 0:02:21.7]} 15. Qc2 {[%clk 0:02:18.4]}
15... c6 {[%clk 0:02:17.7]} 16. Rd1 {[%clk 0:02:10.2]} 16... e5 {[%clk
0:02:09.1]} 17. b4 {[%clk 0:01:31.9]} 17... Nd7 {[%clk 0:02:08.5]} 18. c4 {[%clk
0:01:27.7]} 18... e6 {[%clk 0:02:02.6]} 19. Rb1 {[%clk 0:01:25.6]} 19... Rf8
{[%clk 0:01:34.8]} 20. b5 {[%clk 0:01:23.1]} 20... Rac8 {[%clk 0:01:32.1]} 21.
bxc6 {[%clk 0:01:18.7]} 21... bxc6 {[%clk 0:01:23.1]} 22. Qa4 {[%clk 0:01:11.8]}
22... Rf7 {[%clk 0:01:15.3]} 23. Be3 {[%clk 0:01:07.3]} 23... d4 {[%clk
0:01:06.6]} 24. Bc1 {[%clk 0:01:07.3]} 24... Nc5 {[%clk 0:01:05.5]} 25. Qa5
{[%clk 0:01:02.2]} 25... Bf6 {[%clk 0:00:36.6]} 26. Ba3 {[%clk 0:00:55.9]} 26...
Be7 {[%clk 0:00:36.6]} 27. Qxa7 {[%clk 0:00:52.3]} 27... Bf8 {[%clk 0:00:23.5]}
28. Qa5 {[%clk 0:00:49.5]} 28... Rcc7 {[%clk 0:00:21]} 29. Rb8 {[%clk
0:00:44.6]} 29... Kg7 {[%clk 0:00:08.4]} 30. Rxf8 {[%clk 0:00:43.4]} 30... Qxf8
{[%clk 0:00:09.3]} 31. Bxc5 {[%clk 0:00:43]} 31... Qe8 {[%clk 0:00:07.9]} 32.
Be4 {[%clk 0:00:39.7]} 32... Rf6 {[%clk 0:00:07.6]} 33. Bd6 {[%clk 0:00:38.7]}
33... Rxf2 {[%clk 0:00:01.9]} 34. Qxe5+ {[%clk 0:00:36.1]} 34... Kg8 {[%clk
0:00:01.8]} 35. Kxf2 {[%clk 0:00:34.8]} 35... Rf7+ {[%clk 0:00:02.7]} 36. Kg2
{[%clk 0:00:34.6]} 36... Qb8 {[%clk 0:00:03]} 37. Bxb8 {[%clk 0:00:34]} 1-0

[Event "*** Titled Tuesday Blitz"]
[Site "Chess.com"]
[Date "2020.11.03"]
[Round "2"]
[White "lucachess49"]
[Black "Vuk2000"]
[Result "1-0"]
[WhiteElo "2352"]
[BlackElo "2658"]
[TimeControl "180+1"]
[EndTime "10:18:44 PST"]
[Termination "lucachess49 won by checkmate"]

1. d4 {[%clk 0:02:53.8]} 1... Nf6 {[%clk 0:02:59.4]} 2. c4 {[%clk 0:02:53.7]}
2... e6 {[%clk 0:02:59.4]} 3. Nc3 {[%clk 0:02:53.5]} 3... Bb4 {[%clk 0:02:59.5]}
4. e3 {[%clk 0:02:53.6]} 4... O-O {[%clk 0:02:59.6]} 5. Ne2 {[%clk 0:02:49.6]}
5... d5 {[%clk 0:02:59]} 6. a3 {[%clk 0:02:46.9]} 6... Be7 {[%clk 0:02:59.1]} 7.
cxd5 {[%clk 0:02:46.5]} 7... exd5 {[%clk 0:03:00]} 8. Nf4 {[%clk 0:02:47]} 8...
c6 {[%clk 0:02:59.5]} 9. Bd3 {[%clk 0:02:46.8]} 9... a5 {[%clk 0:02:52.6]} 10.
O-O {[%clk 0:02:46.2]} 10... Na6 {[%clk 0:02:34.8]} 11. Bc2 {[%clk 0:02:31.6]}
11... b5 {[%clk 0:02:27.6]} 12. f3 {[%clk 0:02:26.2]} 12... b4 {[%clk
0:02:20.5]} 13. Na4 {[%clk 0:02:24.4]} 13... c5 {[%clk 0:02:09.6]} 14. dxc5
{[%clk 0:02:13.5]} 14... Nxc5 {[%clk 0:02:01.9]} 15. Nxc5 {[%clk 0:02:12.4]}
15... Bxc5 {[%clk 0:02:02.8]} 16. axb4 {[%clk 0:02:11.6]} 16... Bxb4 {[%clk
0:02:03]} 17. Nd3 {[%clk 0:01:47]} 17... Bd6 {[%clk 0:01:54.1]} 18. Bd2 {[%clk
0:01:33.4]} 18... Bf5 {[%clk 0:01:34.3]} 19. Bc3 {[%clk 0:01:28.4]} 19... Qe7
{[%clk 0:01:16.2]} 20. Re1 {[%clk 0:01:20.9]} 20... Rfc8 {[%clk 0:00:47.3]} 21.
Bb3 {[%clk 0:00:44]} 21... Rd8 {[%clk 0:00:23.1]} 22. Nf4 {[%clk 0:00:26.1]}
22... Bc5 {[%clk 0:00:17.2]} 23. Bd4 {[%clk 0:00:19.8]} 23... Bb4 {[%clk
0:00:16.2]} 24. Re2 {[%clk 0:00:16.8]} 24... Be6 {[%clk 0:00:13.7]} 25. Rc1
{[%clk 0:00:13.4]} 25... Qd7 {[%clk 0:00:11]} 26. Bxf6 {[%clk 0:00:10.2]} 26...
gxf6 {[%clk 0:00:11.9]} 27. Qd4 {[%clk 0:00:10.3]} 27... Be7 {[%clk 0:00:06.5]}
28. Nh5 {[%clk 0:00:09.5]} 28... f5 {[%clk 0:00:07]} 29. Qg7# {[%clk 0:00:07.8]}
1-0

[Event "*** Titled Tuesday Blitz"]
[Site "Chess.com"]
[Date "2020.11.03"]
[Round "2"]
[White "Jenia84"]
[Black "arminmusovic"]
[Result "0-1"]
[WhiteElo "2292"]
[BlackElo "2580"]
[TimeControl "180+1"]
[EndTime "10:18:44 PST"]
[Termination "arminmusovic won by resignation"]

1. Nf3 {[%clk 0:03:00.9]} 1... a6 {[%clk 0:02:59.2]} 2. b3 {[%clk 0:02:59.9]}
2... e6 {[%clk 0:02:59.7]} 3. Bb2 {[%clk 0:02:58.3]} 3... d5 {[%clk 0:03:00.4]}
4. e3 {[%clk 0:02:57.2]} 4... Nf6 {[%clk 0:03:00.7]} 5. Be2 {[%clk 0:02:57.8]}
5... c5 {[%clk 0:03:01.2]} 6. O-O {[%clk 0:02:58.3]} 6... Nc6 {[%clk 0:03:01.8]}
7. Ne5 {[%clk 0:02:56.1]} 7... Nxe5 {[%clk 0:03:00]} 8. Bxe5 {[%clk 0:02:55.4]}
8... Bd6 {[%clk 0:03:00.9]} 9. d4 {[%clk 0:02:52.3]} 9... Qc7 {[%clk 0:02:50]}
10. Bxd6 {[%clk 0:02:49.6]} 10... Qxd6 {[%clk 0:02:50.9]} 11. dxc5 {[%clk
0:02:46.4]} 11... Qxc5 {[%clk 0:02:51.1]} 12. c4 {[%clk 0:02:44.8]} 12... O-O
{[%clk 0:02:51.1]} 13. Nd2 {[%clk 0:02:41.3]} 13... Rd8 {[%clk 0:02:45]} 14. Qc2
{[%clk 0:02:38.4]} 14... e5 {[%clk 0:02:33.6]} 15. Rac1 {[%clk 0:02:32.9]} 15...
d4 {[%clk 0:02:33.3]} 16. exd4 {[%clk 0:02:22.3]} 16... exd4 {[%clk 0:02:18.3]}
17. Ne4 {[%clk 0:02:21.2]} 17... Qe5 {[%clk 0:02:08.5]} 18. Nxf6+ {[%clk
0:02:11.2]} 18... Qxf6 {[%clk 0:02:09.4]} 19. Bd3 {[%clk 0:02:11.1]} 19... h5
{[%clk 0:02:07.2]} 20. Rfe1 {[%clk 0:02:08.3]} 20... Be6 {[%clk 0:02:03.2]} 21.
Qe2 {[%clk 0:02:07.7]} 21... g6 {[%clk 0:01:55.2]} 22. Qe5 {[%clk 0:01:56.1]}
22... Qxe5 {[%clk 0:01:54.2]} 23. Rxe5 {[%clk 0:01:56.5]} 23... Kg7 {[%clk
0:01:53.5]} 24. f3 {[%clk 0:01:51.9]} 24... b5 {[%clk 0:01:50]} 25. cxb5 {[%clk
0:01:32]} 25... axb5 {[%clk 0:01:49.9]} 26. Rc2 {[%clk 0:01:32.4]} 26... Rac8
{[%clk 0:01:21.1]} 27. Rec5 {[%clk 0:01:01.8]} 27... b4 {[%clk 0:01:11.3]} 28.
Kf2 {[%clk 0:00:51.2]} 28... Rxc5 {[%clk 0:01:07.7]} 29. Rxc5 {[%clk 0:00:50.2]}
29... Ra8 {[%clk 0:01:08.6]} 30. Rc2 {[%clk 0:00:48.1]} 30... Kf6 {[%clk
0:01:08.8]} 31. Be4 {[%clk 0:00:41.2]} 31... Ra5 {[%clk 0:01:04.9]} 32. Ke2
{[%clk 0:00:39.9]} 32... Ke5 {[%clk 0:01:02.5]} 33. Kd3 {[%clk 0:00:35.9]} 33...
Bd7 {[%clk 0:00:50.5]} 34. f4+ {[%clk 0:00:20.2]} 34... Kxf4 {[%clk 0:00:42.4]}
35. Kxd4 {[%clk 0:00:20.7]} 35... f5 {[%clk 0:00:41.9]} 36. Rf2+ {[%clk
0:00:20.5]} 36... Kg5 {[%clk 0:00:42.1]} 37. Bd5 {[%clk 0:00:19.5]} 37... h4
{[%clk 0:00:30.2]} 38. g3 {[%clk 0:00:19.5]} 38... hxg3 {[%clk 0:00:26.9]} 39.
hxg3 {[%clk 0:00:19.9]} 39... Kg4 {[%clk 0:00:27.6]} 40. Rg2 {[%clk 0:00:20]}
40... Bc8 {[%clk 0:00:27.3]} 41. Kc4 {[%clk 0:00:19.2]} 41... Rxd5 {[%clk
0:00:26.8]} 0-1

[Event "*** Titled Tuesday Blitz"]
[Site "Chess.com"]
[Date "2020.11.03"]
[Round "2"]
[White "norwaytoadog"]
[Black "Mesutgm"]
[Result "0-1"]
[WhiteElo "2330"]
[BlackElo "2618"]
[TimeControl "180+1"]
[EndTime "10:18:44 PST"]
[Termination "Mesutgm won on time"]

1. e4 {[%clk 0:02:59.8]} 1... g6 {[%clk 0:02:56.3]} 2. d4 {[%clk 0:02:59.6]}
2... Bg7 {[%clk 0:02:55.7]} 3. Nc3 {[%clk 0:03:00]} 3... d6 {[%clk 0:02:53.6]}
4. Be3 {[%clk 0:03:00]} 4... Nf6 {[%clk 0:02:50.9]} 5. Qd2 {[%clk 0:02:59.7]}
5... a6 {[%clk 0:02:46.1]} 6. f3 {[%clk 0:02:57.3]} 6... b5 {[%clk 0:02:42.3]}
7. h4 {[%clk 0:02:56.9]} 7... h5 {[%clk 0:02:39.3]} 8. Nh3 {[%clk 0:02:56.7]}
8... Nbd7 {[%clk 0:02:38.7]} 9. Ng5 {[%clk 0:02:55.9]} 9... Nb6 {[%clk
0:02:35.7]} 10. O-O-O {[%clk 0:02:38.8]} 10... Rb8 {[%clk 0:02:32.5]} 11. Bd3
{[%clk 0:02:30.5]} 11... Nfd7 {[%clk 0:01:56.3]} 12. f4 {[%clk 0:02:09.9]} 12...
c5 {[%clk 0:01:54.5]} 13. dxc5 {[%clk 0:02:05.7]} 13... Nxc5 {[%clk 0:01:54.1]}
14. Bxc5 {[%clk 0:01:50.6]} 14... dxc5 {[%clk 0:01:47.8]} 15. Bxb5+ {[%clk
0:01:50.2]} 15... Nd7 {[%clk 0:01:47.3]} 16. Ba4 {[%clk 0:01:30.4]} 16... O-O
{[%clk 0:01:38.2]} 17. Bxd7 {[%clk 0:01:26.1]} 17... Qb6 {[%clk 0:01:37.8]} 18.
b3 {[%clk 0:01:11.5]} 18... Bxd7 {[%clk 0:01:25.8]} 19. Nd5 {[%clk 0:00:53.9]}
19... Qd8 {[%clk 0:01:20]} 20. Nxe7+ {[%clk 0:00:49.6]} 20... Qxe7 {[%clk
0:01:19.7]} 21. Qxd7 {[%clk 0:00:49.7]} 21... Qf6 {[%clk 0:01:19.9]} 22. e5
{[%clk 0:00:28.9]} 22... Qxf4+ {[%clk 0:01:18.2]} 23. Qd2 {[%clk 0:00:24.5]}
23... Qxe5 {[%clk 0:01:16.9]} 24. c3 {[%clk 0:00:24.7]} 24... c4 {[%clk
0:01:05.6]} 25. Kc2 {[%clk 0:00:19.8]} 25... Qa5 {[%clk 0:01:01.3]} 26. Kb2
{[%clk 0:00:15.1]} 26... cxb3 {[%clk 0:00:58.3]} 27. axb3 {[%clk 0:00:15]} 27...
Rfc8 {[%clk 0:00:58.3]} 28. Rc1 {[%clk 0:00:11.1]} 28... Qa4 {[%clk 0:00:52]}
29. Qd1 {[%clk 0:00:05.8]} 29... Qb4 {[%clk 0:00:41.5]} 30. Qd5 {[%clk
0:00:04.9]} 30... Rxc3 {[%clk 0:00:24]} 31. Qxf7+ {[%clk 0:00:03.9]} 31... Kh8
{[%clk 0:00:24.1]} 0-1

[Event "*** Titled Tuesday Blitz"]
[Site "Chess.com"]
[Date "2020.11.03"]
[Round "2"]
[White "kleopl"]
[Black "natelleka"]
[Result "1-0"]
[WhiteElo "2443"]
[BlackElo "2241"]
[TimeControl "180+1"]
[EndTime "10:18:45 PST"]
[Termination "kleopl won on time"]

1. c4 {[%clk 0:03:00.9]} 1... e5 {[%clk 0:02:59.2]} 2. Nc3 {[%clk 0:03:00.8]}
2... Nf6 {[%clk 0:02:59.6]} 3. Nf3 {[%clk 0:03:01]} 3... Nc6 {[%clk 0:02:59.1]}
4. e4 {[%clk 0:03:01.1]} 4... Be7 {[%clk 0:02:56.2]} 5. d4 {[%clk 0:02:59.5]}
5... d6 {[%clk 0:02:49.7]} 6. Be2 {[%clk 0:02:56.6]} 6... O-O {[%clk 0:02:48.3]}
7. h3 {[%clk 0:02:55.9]} 7... Re8 {[%clk 0:02:47.4]} 8. O-O {[%clk 0:02:54.8]}
8... h6 {[%clk 0:02:46.7]} 9. b3 {[%clk 0:02:52.2]} 9... Bf8 {[%clk 0:02:44.8]}
10. d5 {[%clk 0:02:51.7]} 10... Ne7 {[%clk 0:02:42.2]} 11. Bb2 {[%clk
0:02:49.4]} 11... g5 {[%clk 0:02:38]} 12. Nh2 {[%clk 0:02:46.8]} 12... Ng6
{[%clk 0:02:37.3]} 13. b4 {[%clk 0:02:42.3]} 13... Nf4 {[%clk 0:02:36]} 14. a4
{[%clk 0:02:38.2]} 14... Kh7 {[%clk 0:02:23.5]} 15. Kh1 {[%clk 0:02:35.7]} 15...
Nxe2 {[%clk 0:02:19.8]} 16. Qxe2 {[%clk 0:02:35]} 16... Bg7 {[%clk 0:02:12.7]}
17. Nd1 {[%clk 0:02:31.3]} 17... Qe7 {[%clk 0:01:50.4]} 18. Ng4 {[%clk
0:02:24.1]} 18... Nh5 {[%clk 0:01:35.3]} 19. g3 {[%clk 0:02:18.9]} 19... f5
{[%clk 0:01:29.7]} 20. exf5 {[%clk 0:02:16.4]} 20... Bxf5 {[%clk 0:01:27]} 21.
Kh2 {[%clk 0:02:10.4]} 21... Qd7 {[%clk 0:00:40.6]} 22. a5 {[%clk 0:01:49.7]}
22... Rf8 {[%clk 0:00:37.3]} 23. Nxe5 {[%clk 0:01:41.8]} 23... dxe5 {[%clk
0:00:32.4]} 24. Qxh5 {[%clk 0:01:41.5]} 24... Rae8 {[%clk 0:00:29.4]} 25. Rc1
{[%clk 0:01:36.6]} 25... Bd3 {[%clk 0:00:28.7]} 26. Re1 {[%clk 0:01:36.2]} 26...
Qf5 {[%clk 0:00:26]} 27. Qg4 {[%clk 0:01:32.7]} 27... Qg6 {[%clk 0:00:22.8]} 28.
Kg1 {[%clk 0:01:25.7]} 28... h5 {[%clk 0:00:21.7]} 29. Qd7 {[%clk 0:01:22.5]}
29... Bf5 {[%clk 0:00:17.6]} 30. Qxc7 {[%clk 0:01:21.3]} 30... Bxh3 {[%clk
0:00:17.5]} 31. d6 {[%clk 0:01:19.7]} 31... Rc8 {[%clk 0:00:15.7]} 32. Qxb7
{[%clk 0:01:17.7]} 32... Rcd8 {[%clk 0:00:09]} 33. Bxe5 {[%clk 0:01:14.7]} 33...
Rf7 {[%clk 0:00:06.7]} 34. Qe4 {[%clk 0:01:06.2]} 34... Bxe5 {[%clk 0:00:05.7]}
35. Qxg6+ {[%clk 0:01:02.3]} 35... Kxg6 {[%clk 0:00:05]} 36. Rxe5 {[%clk
0:01:03.2]} 36... Rxd6 {[%clk 0:00:05]} 37. c5 {[%clk 0:01:02]} 37... Rc6 {[%clk
0:00:04.3]} 38. b5 {[%clk 0:01:01.5]} 38... Rc8 {[%clk 0:00:03.5]} 39. b6 {[%clk
0:01:00.9]} 39... axb6 {[%clk 0:00:02.9]} 40. axb6 {[%clk 0:01:01.8]} 40... Rb7
{[%clk 0:00:02.7]} 41. Ra1 {[%clk 0:01:00.1]} 41... Bg4 {[%clk 0:00:01.3]} 42.
Ne3 {[%clk 0:00:59.7]} 42... Bf3 {[%clk 0:00:01.1]} 43. Re6+ {[%clk 0:00:54.9]}
1-0

[Event "*** Titled Tuesday Blitz"]
[Site "Chess.com"]
[Date "2020.11.03"]
[Round "2"]
[White "CarlssonLudvig"]
[Black "Ze-Pequeno"]
[Result "1-0"]
[WhiteElo "2441"]
[BlackElo "2234"]
[TimeControl "180+1"]
[EndTime "10:18:45 PST"]
[Termination "CarlssonLudvig won on time"]

1. e4 {[%clk 0:03:00.9]} 1... c5 {[%clk 0:02:53.6]} 2. Nc3 {[%clk 0:02:57.7]}
2... Nc6 {[%clk 0:02:51.7]} 3. Bb5 {[%clk 0:02:56.4]} 3... Nd4 {[%clk
0:02:51.4]} 4. Bc4 {[%clk 0:02:55.5]} 4... e6 {[%clk 0:02:51.2]} 5. Nge2 {[%clk
0:02:54.5]} 5... Ne7 {[%clk 0:02:46.7]} 6. O-O {[%clk 0:02:52.9]} 6... a6 {[%clk
0:02:44.4]} 7. a3 {[%clk 0:02:50.9]} 7... Nec6 {[%clk 0:02:40.4]} 8. d3 {[%clk
0:02:47.8]} 8... b5 {[%clk 0:02:29.8]} 9. Ba2 {[%clk 0:02:46.2]} 9... Be7 {[%clk
0:02:24.3]} 10. Nxd4 {[%clk 0:02:34.3]} 10... Nxd4 {[%clk 0:02:23.6]} 11. Ne2
{[%clk 0:02:30.6]} 11... Nxe2+ {[%clk 0:02:18.4]} 12. Qxe2 {[%clk 0:02:27.4]}
12... O-O {[%clk 0:02:19.3]} 13. Be3 {[%clk 0:02:03.7]} 13... Bb7 {[%clk
0:02:15.3]} 14. Rad1 {[%clk 0:01:55.3]} 14... d5 {[%clk 0:02:13.2]} 15. exd5
{[%clk 0:01:53.1]} 15... Bxd5 {[%clk 0:02:09.3]} 16. Bxd5 {[%clk 0:01:49]} 16...
Qxd5 {[%clk 0:02:07.9]} 17. c4 {[%clk 0:01:45.4]} 17... Qc6 {[%clk 0:02:06.4]}
18. Rc1 {[%clk 0:01:41]} 18... Rfd8 {[%clk 0:02:05]} 19. cxb5 {[%clk 0:01:33.4]}
19... axb5 {[%clk 0:02:04.5]} 20. Rc2 {[%clk 0:01:32.6]} 20... Qd5 {[%clk
0:01:58.2]} 21. Rfc1 {[%clk 0:01:28.4]} 21... Rac8 {[%clk 0:01:57.5]} 22. Kf1
{[%clk 0:00:59.7]} 22... h6 {[%clk 0:01:56.1]} 23. h3 {[%clk 0:00:59.7]} 23...
Qxd3 {[%clk 0:01:35.8]} 24. Qxd3 {[%clk 0:00:59.2]} 24... Rxd3 {[%clk
0:01:36.1]} 25. Bxc5 {[%clk 0:00:59.3]} 25... Bxc5 {[%clk 0:01:20.8]} 26. Rxc5
{[%clk 0:00:58.2]} 26... Rxc5 {[%clk 0:01:21.7]} 27. Rxc5 {[%clk 0:00:57.4]}
27... Rb3 {[%clk 0:01:22.6]} 28. Rc2 {[%clk 0:00:56.4]} 28... Kf8 {[%clk
0:01:21.5]} 29. Ke2 {[%clk 0:00:47.4]} 29... Ke7 {[%clk 0:01:20.4]} 30. Kd2
{[%clk 0:00:45.8]} 30... Kd6 {[%clk 0:01:20.3]} 31. Kc1 {[%clk 0:00:38.3]} 31...
e5 {[%clk 0:01:17.8]} 32. Rc8 {[%clk 0:00:34.7]} 32... e4 {[%clk 0:01:10.9]} 33.
Kc2 {[%clk 0:00:32.3]} 33... Rd3 {[%clk 0:01:10.3]} 34. Rd8+ {[%clk 0:00:32.8]}
1-0

[Event "*** Titled Tuesday Blitz"]
[Site "Chess.com"]
[Date "2020.11.03"]
[Round "2"]
[White "Balla_Tamas"]
[Black "wannabe2700"]
[Result "0-1"]
[WhiteElo "2487"]
[BlackElo "2743"]
[TimeControl "180+1"]
[EndTime "10:18:46 PST"]
[Termination "wannabe2700 won by resignation"]

1. d4 {[%clk 0:03:00.9]} 1... f5 {[%clk 0:03:00]} 2. c4 {[%clk 0:02:49.7]} 2...
Nf6 {[%clk 0:03:00.1]} 3. Nc3 {[%clk 0:02:49.5]} 3... g6 {[%clk 0:03:00.8]} 4.
Bg5 {[%clk 0:02:45.5]} 4... Bg7 {[%clk 0:03:00.7]} 5. h4 {[%clk 0:02:45.7]} 5...
c5 {[%clk 0:02:59.5]} 6. d5 {[%clk 0:02:44.9]} 6... Qb6 {[%clk 0:02:55.3]} 7.
Qc2 {[%clk 0:02:43.8]} 7... Ne4 {[%clk 0:02:55.1]} 8. Nxe4 {[%clk 0:02:34.5]}
8... fxe4 {[%clk 0:02:56]} 9. O-O-O {[%clk 0:02:17.8]} 9... Na6 {[%clk
0:02:50.9]} 10. a3 {[%clk 0:02:15.4]} 10... d6 {[%clk 0:02:49.9]} 11. e3 {[%clk
0:02:13.2]} 11... Bd7 {[%clk 0:02:48.3]} 12. Ne2 {[%clk 0:02:12.8]} 12... O-O
{[%clk 0:02:48.3]} 13. Ng3 {[%clk 0:02:08.2]} 13... Ba4 {[%clk 0:02:48.3]} 14.
Qd2 {[%clk 0:01:42.3]} 14... Bxd1 {[%clk 0:02:43.6]} 15. Kxd1 {[%clk 0:01:41.6]}
15... Qxb2 {[%clk 0:02:42.6]} 16. Qxb2 {[%clk 0:01:39]} 16... Bxb2 {[%clk
0:02:43.5]} 17. Nxe4 {[%clk 0:01:38.5]} 17... Kf7 {[%clk 0:02:31]} 18. a4 {[%clk
0:01:34.5]} 18... Nc7 {[%clk 0:02:21.7]} 19. Bd3 {[%clk 0:01:32.4]} 19... b6
{[%clk 0:02:17.5]} 20. h5 {[%clk 0:01:31.9]} 20... Rh8 {[%clk 0:02:08.7]} 21.
Bf4 {[%clk 0:01:31.2]} 21... Bf6 {[%clk 0:02:06.3]} 22. Kc2 {[%clk 0:01:30.2]}
22... Ne8 {[%clk 0:02:01.4]} 23. f3 {[%clk 0:01:27.7]} 23... Ng7 {[%clk
0:01:59]} 24. g4 {[%clk 0:01:27.8]} 24... gxh5 {[%clk 0:01:53.4]} 25. gxh5
{[%clk 0:01:27.3]} 25... Rag8 {[%clk 0:01:50.8]} 26. Ng3 {[%clk 0:01:26.7]}
26... Ne8 {[%clk 0:01:45.1]} 27. Bf5 {[%clk 0:01:25]} 27... Kf8 {[%clk 0:01:39]}
28. Bg4 {[%clk 0:01:22.8]} 28... Be5 {[%clk 0:01:30]} 29. Bxe5 {[%clk
0:01:20.9]} 29... dxe5 {[%clk 0:01:29.8]} 30. Ne4 {[%clk 0:01:17.4]} 30... Nd6
{[%clk 0:01:28.8]} 31. Nxd6 {[%clk 0:01:16.1]} 31... exd6 {[%clk 0:01:29.7]} 32.
Kd3 {[%clk 0:01:16.3]} 32... h6 {[%clk 0:01:28]} 33. a5 {[%clk 0:01:14.9]} 33...
bxa5 {[%clk 0:01:25.2]} 34. Ra1 {[%clk 0:01:14.2]} 34... Ke7 {[%clk 0:01:24.7]}
35. Rxa5 {[%clk 0:01:14.6]} 35... Ra8 {[%clk 0:01:25.3]} 36. Ke4 {[%clk
0:01:11.1]} 36... Rhb8 {[%clk 0:01:24.7]} 37. Kd3 {[%clk 0:00:57.8]} 37... Rb3+
{[%clk 0:01:24.3]} 38. Ke4 {[%clk 0:00:57.1]} 38... Rc3 {[%clk 0:01:23.8]} 39.
Ra4 {[%clk 0:00:56.5]} 39... a5 {[%clk 0:01:24.4]} 40. Be6 {[%clk 0:00:53.1]}
40... Rb3 {[%clk 0:01:23.5]} 41. Kf5 {[%clk 0:00:48.6]} 41... Rxe3 {[%clk
0:01:22.3]} 42. Kg6 {[%clk 0:00:48.6]} 42... Rxf3 {[%clk 0:01:22]} 43. Kxh6
{[%clk 0:00:48.6]} 43... Kf6 {[%clk 0:01:21.4]} 44. Kh7 {[%clk 0:00:46.6]} 44...
Rf4 {[%clk 0:01:20.9]} 45. Ra1 {[%clk 0:00:43.1]} 45... Rxc4 {[%clk 0:01:19.1]}
46. Rf1+ {[%clk 0:00:43.1]} 46... Rf4 {[%clk 0:01:19.1]} 47. Rg1 {[%clk
0:00:43.6]} 47... Ra7+ {[%clk 0:01:17.7]} 48. Kh6 {[%clk 0:00:42]} 48... e4
{[%clk 0:01:17.1]} 49. Rg6+ {[%clk 0:00:41.7]} 49... Ke5 {[%clk 0:01:17.6]} 50.
Rg5+ {[%clk 0:00:41.9]} 50... Kd4 {[%clk 0:01:17.3]} 51. Kg6 {[%clk 0:00:42.1]}
51... e3 {[%clk 0:01:17.1]} 52. Bg4 {[%clk 0:00:40.1]} 52... a4 {[%clk
0:01:13.2]} 53. h6 {[%clk 0:00:39.8]} 53... a3 {[%clk 0:01:11.5]} 54. Be2 {[%clk
0:00:37.4]} 54... a2 {[%clk 0:01:10.3]} 55. Rg1 {[%clk 0:00:37.1]} 55... Rf2
{[%clk 0:01:09]} 56. Bh5 {[%clk 0:00:32.1]} 56... e2 {[%clk 0:01:05.1]} 57. Bxe2
{[%clk 0:00:31]} 57... Rxe2 {[%clk 0:01:04.9]} 58. h7 {[%clk 0:00:31.6]} 58...
Rh2 {[%clk 0:01:02.2]} 0-1